bitfinex/quotes_SOLUSD_20250922
["timestamp","ask_amount","ask_price","bid_price","bid_amount"]
[1758561554654,3.54983632,219.85,219.77,13.59559401]
[1758561554975,2.84983632,219.96,219.81,2.84983632]
[1758561554976,3.54983632,219.88,219.81,2.84983632]
[1758561555279,0.7,219.88,219.82,44.21892086]
[1758561555482,0.7,219.88,219.82,41.36908454]
[1758561555655,2.84983632,219.89,219.83,0.71]
[1758561556057,2.84983632,219.87,219.82,41.36908454]
[1758561556256,3.54983632,219.87,219.82,42.07908454]
[1758561556485,0.7,219.86,219.82,36.82]
[1758561556779,2.84983632,219.87,219.82,41.36917345]
[1758561556970,2.84983632,219.84,219.82,42.07917345]
[1758561557170,0.7,219.87,219.82,42.07917345]
[1758561557361,2.84983632,219.84,219.82,42.07917345]
[1758561557670,26.0,219.93,219.82,42.07917345]
[1758561557873,2.84983632,219.84,219.82,0.71]
[1758561558064,2.84983632,219.84,219.82,36.82]
[1758561558263,2.84983632,219.84,219.82,37.53]
[1758561558663,2.84983632,219.84,219.83,0.71]
[1758561559179,2.84983632,219.84,219.82,36.82]
[1758561559180,2.84983632,219.84,219.82,41.36908309]
[1758561559381,0.7,219.89,219.83,0.71]
[1758561559568,2.84983632,219.86,219.83,0.71]
[1758561559768,2.84983632,219.87,219.84,0.71]
[1758561560084,2.84983632,219.88,219.85,0.71]
[1758561560261,2.84983632,219.89,219.86,37.51]
[1758561560464,2.84983632,219.89,219.86,36.8]
[1758561560677,26.7,219.93,219.87,0.71]
[1758561560879,2.84983632,219.9,219.87,0.71]
[1758561561079,2.84983632,219.9,219.86,36.8]
[1758561561393,2.84983632,219.9,219.88,5.25789555]
[1758561561879,2.84983632,219.89,219.86,41.34818662]
[1758561562187,2.84983632,219.89,219.86,42.05818662]
[1758561562490,2.84983632,219.87,219.83,4.54896965]
[1758561562658,26.0,219.93,219.81,14.22314819]
[1758561562659,2.84983632,219.84,219.81,0.71]
[1758561562862,2.84983632,219.83,219.82,36.8]
[1758561563890,2.84983632,219.83,219.79,4.54968473]
[1758561564065,2.84983632,219.82,219.8,37.51]
[1758561564269,0.7,219.87,219.8,36.8]
[1758561564495,2.84983632,219.82,219.81,0.71]
[1758561564676,2.84983632,219.82,219.8,36.8]
[1758561564995,0.7,219.84,219.8,50.39559401]
[1758561565288,2.84983632,219.82,219.8,50.39559401]
[1758561565485,2.84983632,219.82,219.8,18.14511242]
[1758561565686,2.84983632,219.82,219.8,54.92511242]
[1758561565871,2.84983632,219.82,219.8,55.63511242]
[1758561566788,2.84983632,219.83,219.81,0.71]
[1758561567170,26.0,219.91,219.81,0.71]
[1758561567171,26.0,219.91,219.82,0.68]
[1758561567379,20.0,219.96,219.83,36.78]
[1758561567380,2.84983632,219.87,219.83,36.78]
[1758561567577,2.84983632,219.88,219.84,0.68]
[1758561567783,2.84983632,219.88,219.85,0.68]
[1758561567978,2.84983632,219.87,219.85,0.68]
[1758561568187,2.84983632,219.86,219.85,0.68]
[1758561568387,2.84983632,219.86,219.85,37.46]
[1758561568587,2.84983632,219.87,219.85,37.46]
[1758561568787,2.84983632,219.87,219.86,4.54834894]
[1758561569401,157.49644114,219.9,219.86,5.22834894]
[1758561569601,2.84983632,219.89,219.87,0.68]
[1758561570294,134.34627746,219.9,219.88,0.68]
[1758561570869,2.84983632,219.91,219.89,4.5477284]
[1758561571275,2.84983632,219.9,219.89,4.5477284]
[1758561573002,2.84983632,219.9,219.87,18.14357545]
[1758561573178,2.84983632,219.88,219.87,36.76]
[1758561573507,3.55983632,219.88,219.85,50.35559401]
[1758561573699,2.84983632,219.86,219.85,50.35559401]
[1758561574702,0.71,219.89,219.85,54.90414984]
[1758561574890,2.84983632,219.86,219.85,54.90414984]
[1758561575399,2.84983632,219.86,219.82,0.68]
[1758561575591,2.84983632,219.83,219.82,36.74]
[1758561575790,0.71,219.88,219.82,36.74]
[1758561575999,2.84983632,219.83,219.82,36.74]
[1758561577486,0.71,219.87,219.82,36.74]
[1758561577808,2.84983632,219.83,219.82,36.74]
[1758561579103,26.0,219.89,219.83,4.54896965]
[1758561579410,28.84983632,219.89,219.84,37.42]
[1758561579594,2.84983632,219.87,219.84,37.42]
[1758561579794,2.84983632,219.87,219.85,0.68]
[1758561579989,2.84983632,219.87,219.84,36.74]
[1758561580302,2.84983632,219.88,219.84,36.74]
[1758561580506,2.84983632,219.88,219.85,5.22835949]
[1758561580691,2.84983632,219.88,219.86,36.72]
[1758561582107,2.84983632,219.88,219.86,41.26830215]
[1758561582805,2.84983632,219.87,219.86,41.26830215]
[1758561583317,2.84983632,219.87,219.86,36.72]
[1758561583692,26.0,219.89,219.86,41.94834894]
[1758561583902,2.84983632,219.87,219.86,41.26834894]
[1758561584097,2.84983632,219.87,219.86,36.72]
[1758561586304,26.0,219.89,219.86,41.26834894]
[1758561586506,2.84983632,219.9,219.87,0.68]
[1758561586701,2.84983632,219.9,219.88,36.7]
[1758561587008,2.84983632,219.89,219.88,36.7]
[1758561587704,29.55983632,219.89,219.8,0.68]
[1758561587883,2.84983632,219.81,219.76,0.68]
[1758561588087,2.84983632,219.79,219.77,37.38]
[1758561588322,2.84983632,219.81,219.79,4.54979753]
[1758561588685,2.84983632,219.8,219.79,0.68]
[1758561589088,26.71,219.85,219.79,0.68]
[1758561589289,2.84983632,219.83,219.79,0.68]
[1758561590804,2.84983632,219.82,219.78,36.7]
[1758561591004,2.84983632,219.82,219.78,37.38]
[1758561591620,0.71,219.83,219.78,41.92999592]
[1758561591910,2.84983632,219.82,219.78,41.92999592]
[1758561592114,3.55983632,219.83,219.78,41.92999592]
[1758561592410,2.84983632,219.82,219.78,41.92999592]
[1758561592706,2.84983632,219.82,219.78,37.38]
[1758561592909,2.84983632,219.81,219.78,41.92989551]
[1758561593116,2.84983632,219.82,219.79,37.36]
[1758561593411,2.84983632,219.82,219.79,36.68]
[1758561594296,3.55983632,219.81,219.79,36.68]
[1758561594506,2.84983632,219.8,219.79,36.68]
[1758561594710,3.55983632,219.8,219.79,36.68]
[1758561594905,2.84983632,219.8,219.79,36.68]
[1758561595106,2.84983632,219.8,219.78,41.22989551]
[1758561596818,2.84983632,219.8,219.76,5.23040469]
[1758561597113,2.84983632,219.81,219.77,37.34]
[1758561597298,2.84983632,219.84,219.78,14.30559401]
[1758561597495,2.84983632,219.84,219.79,37.37]
[1758561597696,2.84983632,219.84,219.8,0.71]
[1758561597896,2.84983632,219.84,219.81,0.71]
[1758561598302,2.84983632,219.86,219.82,0.71]
[1758561598511,3.52983632,219.89,219.83,0.71]
[1758561598709,0.68,219.92,219.84,7.39859905]
[1758561598894,2.84983632,219.91,219.85,37.37]
[1758561599099,28.84983632,219.91,219.85,37.37]
[1758561599517,2.84983632,219.91,219.85,37.37]
[1758561599738,26.0,219.9,219.85,37.37]
[1758561600022,2.84983632,219.88,219.84,4.54876273]
[1758561600217,3.52983632,219.88,219.85,36.66]
[1758561600595,3.52983632,219.88,219.84,4.54876273]
[1758561600797,3.52983632,219.88,219.84,41.20876273]
[1758561601105,2.84983632,219.9,219.85,0.71]
[1758561601300,26.0,219.89,219.86,0.71]
[1758561602229,2.84983632,219.9,219.86,4.54818887]
[1758561602432,2.84983632,219.87,219.84,18.14416019]
[1758561602642,3.52983632,219.87,219.84,18.14416019]
[1758561602928,2.84983632,219.9,219.85,0.71]
[1758561603222,3.52983632,219.9,219.85,0.71]
[1758561603405,2.84983632,219.9,219.86,0.71]
[1758561604725,2.84983632,219.9,219.86,5.25815633]
[1758561605102,3.52983632,219.89,219.84,4.54873089]
[1758561605409,131.49644114,219.91,219.85,14.30559401]
[1758561605608,134.34627746,219.91,219.87,13.59559401]
[1758561605821,2.84983632,219.9,219.87,13.59559401]
[1758561606015,132.17644114,219.91,219.86,36.64]
[1758561606016,0.68,219.89,219.86,36.64]
[1758561606325,3.52983632,219.89,219.86,36.64]
[1758561606525,2.84983632,219.88,219.85,13.59559401]
[1758561606827,2.84983632,219.86,219.82,50.21559401]
[1758561607012,2.84983632,219.85,219.82,55.4747706]
[1758561607218,2.84983632,219.86,219.83,0.71]
[1758561607832,2.84983632,219.87,219.83,0.71]
[1758561608419,2.84983632,219.87,219.84,0.71]
[1758561608613,2.84983632,219.87,219.82,66.13771209]
[1758561608614,2.84983632,219.86,219.82,18.1447706]
[1758561608928,2.84983632,219.86,219.82,55.4747706]
[1758561609724,29.52983632,219.88,219.83,0.71]
[1758561609929,2.84983632,219.87,219.82,18.1447706]
[1758561610121,2.84983632,219.85,219.82,36.62]
[1758561610424,2.84983632,219.86,219.82,36.62]
[1758561610629,3.52983632,219.86,219.82,37.33]
[1758561610835,3.52983632,219.86,219.82,41.87912507]
[1758561611137,26.68,219.88,219.82,53.25206656]
[1758561611676,132.17644114,219.91,219.83,17.15543033]
[1758561611820,2.84983632,219.9,219.84,0.71]
[1758561612418,158.17644114,219.91,219.84,0.71]
[1758561612732,2.84983632,219.93,219.87,2.84983632]
[1758561612904,2.84983632,219.95,219.89,13.59559401]
[1758561613111,6.21996975,219.94,219.89,13.59559401]
[1758561613309,3.52983632,219.94,219.89,14.30559401]
[1758561614124,2.84983632,219.9,219.88,4.54793523]
[1758561614523,2.84983632,219.91,219.88,4.54793523]
[1758561614731,1.82134355,219.91,219.88,4.54793523]
[1758561614923,1.82134355,219.91,219.87,18.14373609]
[1758561615125,1.82134355,219.91,219.87,18.83373609]
[1758561615531,1.82134355,219.92,219.87,18.83373609]
[1758561615734,2.48134355,219.92,219.87,18.14373609]
[1758561615927,2.48134355,219.92,219.87,18.83373609]
[1758561616123,26.0,219.95,219.89,13.59559401]
[1758561616335,1.82134355,219.94,219.89,0.69]
[1758561616537,1.82134355,219.94,219.9,0.69]
[1758561616736,27.82134355,219.95,219.91,0.69]
[1758561616935,26.0,219.95,219.92,0.69]
[1758561617131,1.82134356,219.97,219.93,0.69]
[1758561617842,1e-08,219.97,219.93,0.69]
[1758561618050,1.82134356,219.97,219.93,0.69]
[1758561620250,1e-08,219.97,219.94,5.23669455]
[1758561620434,1e-08,219.97,219.95,0.69]
[1758561620844,1e-08,219.97,219.94,4.54669455]
[1758561621047,1e-08,219.97,219.94,5.23669455]
[1758561621356,1.82134356,219.97,219.94,4.54669455]
[1758561622143,1.82134356,219.97,219.94,0.69]
[1758561622462,1e-08,219.97,219.94,0.69]
[1758561622643,1e-08,219.97,219.95,0.69]
[1758561623343,1e-08,219.97,219.96,4.54628114]
[1758561624154,2.48134356,219.97,219.94,13.59559401]
[1758561624537,1.82134356,219.97,219.93,13.59559401]
[1758561624736,1.82134356,219.97,219.93,14.28559401]
[1758561625133,0.66,219.96,219.92,41.10710803]
[1758561625338,1.82134355,219.94,219.92,36.56]
[1758561625539,1.82134355,219.95,219.92,36.56]
[1758561625769,1.82134355,219.93,219.91,13.59559401]
[1758561625974,1.82134355,219.93,219.91,14.28559401]
[1758561626334,1.82134355,219.94,219.91,14.28559401]
[1758561627250,1.82134355,219.94,219.92,4.54710803]
[1758561627459,1.82134355,219.94,219.92,5.20710803]
[1758561628357,1.82134355,219.96,219.93,0.66]
[1758561628563,1.82134355,219.96,219.92,15.91487812]
[1758561628857,1.82134355,219.96,219.92,16.57487812]
[1758561631040,1.82134355,219.95,219.92,16.57487812]
[1758561631238,2.51134355,219.94,219.9,13.59559401]
[1758561631451,2.51134355,219.93,219.9,18.14311446]
[1758561631649,0.69,219.93,219.9,18.14311446]
[1758561632244,1.82134355,219.94,219.9,18.14311446]
[1758561632444,2.51134355,219.94,219.9,18.14311446]
[1758561632646,2.51134355,219.94,219.9,18.80311446]
[1758561633059,1.82134355,219.94,219.9,18.14311446]
[1758561633361,1.82134355,219.96,219.92,4.54710803]
[1758561633561,1.82134355,219.96,219.92,5.20710803]
[1758561635164,1.82134355,219.95,219.92,5.20710803]
[1758561635343,1.82134355,219.95,219.93,0.66]
[1758561635661,1.82134355,219.96,219.93,0.66]
[1758561635967,1e-08,219.97,219.94,0.66]
[1758561636143,1e-08,219.97,219.94,37.16]
[1758561636344,1e-08,219.97,219.95,0.66]
[1758561636563,1e-08,219.97,219.92,1.82134355]
[1758561636759,1e-08,219.97,219.95,0.66]
[1758561637757,1.82134356,219.97,219.94,36.5]
[1758561637948,1.82134356,219.97,219.94,37.16]
[1758561638855,1.82134356,219.97,219.95,4.54648783]
[1758561639368,1.82134355,219.96,219.91,13.59559401]
[1758561639561,2.51134355,219.95,219.91,0.66]
[1758561639743,1.82134355,219.93,219.92,36.5]
[1758561639937,1.82134355,219.93,219.91,4.54731481]
[1758561640266,1.82134355,219.94,219.91,41.70731481]
[1758561640566,1.82134355,219.93,219.91,41.04731481]
[1758561640965,2.51134355,219.92,219.86,11.37043343]
[1758561641168,1.82134355,219.9,219.88,13.59559401]
[1758561641370,1.82134355,219.9,219.88,14.25559401]
[1758561641862,1.82134355,219.89,219.88,50.73559401]
[1758561642064,1.82134355,219.89,219.88,50.07559401]
[1758561642265,1.82134355,219.89,219.88,36.48]
[1758561642566,2.51134355,219.89,219.82,0.66]
[1758561642744,1.82134355,219.85,219.83,50.07559401]
[1758561643063,1.82134355,219.85,219.83,50.73559401]
[1758561643458,1.82134355,219.84,219.83,13.59559401]
[1758561643968,1.82134355,219.85,219.83,13.59559401]
[1758561644182,1.82134355,219.86,219.83,13.59559401]
[1758561646698,1.82134355,219.88,219.84,0.66]
[1758561646987,1.82134355,219.91,219.85,36.48]
[1758561647160,1.82134355,219.91,219.86,0.66]
[1758561647349,1.82134355,219.91,219.87,0.66]
[1758561647549,2.51134355,219.91,219.85,36.48]
[1758561647749,2.51134355,219.91,219.85,37.14]
[1758561647952,2.51134355,219.91,219.86,13.59559401]
[1758561648169,1.82134355,219.91,219.87,5.20814208]
[1758561648373,1.82134355,219.92,219.88,0.66]
[1758561648565,2.51134355,219.91,219.86,18.14392712]
[1758561648770,1.82134355,219.9,219.86,18.80392712]
[1758561648978,2.51134355,219.91,219.87,0.66]
[1758561649283,1.82134355,219.91,219.87,0.66]
[1758561649454,1.82134355,219.9,219.87,0.66]
[1758561649651,1.82134355,219.9,219.86,18.14392712]
[1758561649888,1.82134355,219.9,219.87,0.66]
[1758561650363,1.82134355,219.9,219.86,18.14392712]
[1758561650572,1.82134355,219.9,219.86,41.66833311]
[1758561650877,2.51134355,219.9,219.86,5.20833311]
[1758561651079,2.51134355,219.89,219.84,13.59559401]
[1758561651284,1.82134355,219.9,219.85,0.66]
[1758561651466,1.82134355,219.9,219.86,0.66]
[1758561651865,27.82134355,219.91,219.86,0.66]
[1758561652095,2.51134355,219.9,219.84,13.59559401]
[1758561652389,1.82134355,219.89,219.85,4.54855583]
[1758561652564,2.51134355,219.89,219.85,4.54855583]
[1758561652764,2.51134355,219.89,219.85,5.20855583]
[1758561653696,2.51134355,219.89,219.85,41.66855583]
[1758561654005,1.82134355,219.89,219.85,41.66855583]
[1758561654298,1.82134355,219.89,219.85,41.00855583]
[1758561654494,1.82134355,219.89,219.86,0.66]
[1758561654801,1.82134355,219.89,219.85,41.00855583]
[1758561655399,1.82134355,219.9,219.86,0.66]
[1758561655602,26.0,219.91,219.87,0.66]
[1758561655811,27.82134355,219.91,219.87,0.66]
[1758561656107,27.82134355,219.91,219.88,4.54793523]
[1758561656285,26.0,219.91,219.88,4.54793523]
[1758561656486,1.82134355,219.93,219.89,0.66]
[1758561657485,133.31778469,219.94,219.9,14.31559401]
[1758561657685,133.31778469,219.94,219.9,0.72]
[1758561658190,133.31778469,219.94,219.91,5.2672236]
[1758561658388,133.31778469,219.94,219.91,4.5472236]
[1758561658603,1.82134355,219.93,219.91,4.5472236]
[1758561658784,131.49644114,219.94,219.91,4.5472236]
[1758561658981,1.82134355,219.93,219.91,4.5472236]
[1758561659185,133.31778469,219.94,219.91,5.2672236]
[1758561659389,1.82134355,219.93,219.91,5.2672236]
[1758561659685,1.82134355,219.93,219.9,4.5475216]
[1758561659902,131.49644114,219.94,219.91,0.72]
[1758561660202,133.31778469,219.94,219.91,0.72]
[1758561660702,131.49644114,219.94,219.9,15.9163256]
[1758561660903,1e-08,219.97,219.91,14.31559401]
[1758561661210,0.38,220.0,219.97,13.59559401]
[1758561661504,0.1,220.02,220.0,13.59559401]
[1758561661683,0.1,220.02,220.01,56.3821855]
[1758561662104,0.1,220.02,220.01,57.1021855]
[1758561664393,0.1,220.02,220.01,55.28084195]
[1758561664683,0.1,220.02,220.01,57.1021855]
[1758561667713,0.1,220.02,220.01,20.6821855]
[1758561667890,0.1,220.02,220.01,70.43952888]
[1758561668216,0.1,220.06,220.04,13.59559401]
[1758561668396,1e-08,220.06,220.05,51.81693756]
[1758561668597,0.66,220.14,220.06,13.59559401]
[1758561668800,0.66,220.14,220.07,51.81693756]
[1758561669110,0.66,220.14,220.07,52.53693756]
[1758561669286,1.82134355,220.18,220.12,1.82134355]
[1758561669486,0.66,220.16,220.13,49.99559401]
[1758561669708,0.66,220.16,220.13,1.82134355]
[1758561669907,0.66,220.16,220.15,13.59559401]
[1758561670089,0.66,220.16,220.13,13.59559401]
[1758561670293,0.66,220.16,220.15,18.13795149]
[1758561670488,0.66,220.16,220.15,54.53795149]
[1758561670990,0.66,220.16,220.15,49.99559401]
[1758561671204,0.1,220.19,220.16,13.59559401]
[1758561671615,2.48134355,220.18,220.16,13.59559401]
[1758561671796,1.82134355,220.18,220.17,36.38]
[1758561672010,1.82134355,220.18,220.16,13.59559401]
[1758561672202,1.82134355,220.18,220.17,36.38]
[1758561672506,2.48134355,220.18,220.17,36.38]
[1758561672709,0.66,220.18,220.17,36.38]
[1758561672905,0.1,220.19,220.17,4.54194486]
[1758561673106,0.1,220.19,220.18,13.59559401]
[1758561673611,0.76,220.19,220.18,13.59559401]
[1758561673996,0.76,220.19,220.18,18.13733258]
[1758561674313,0.76,220.19,220.18,13.59559401]
[1758561675194,0.1,220.19,220.18,13.59559401]
[1758561675794,2.62134355,220.19,220.18,13.59559401]
[1758561675996,2.62134355,220.19,220.14,13.59559401]
[1758561676299,1.82134355,220.17,220.16,13.59559401]
[1758561676505,0.1,220.19,220.17,13.59559401]
[1758561676725,0.1,220.19,220.17,49.97559401]
[1758561677010,3.53904122,220.18,220.17,49.97559401]
[1758561677208,3.53904122,220.18,220.12,4.54278378]
[1758561677518,2.83904122,220.16,220.13,49.97559401]
[1758561677709,2.83904122,220.16,220.15,13.59559401]
[1758561678021,2.83904122,220.16,220.15,49.95559401]
[1758561678195,0.1,220.19,220.15,21.63699271]
[1758561678391,0.1,220.19,220.16,36.36]
[1758561679416,0.1,220.19,220.17,4.54194486]
[1758561679608,0.8,220.19,220.18,13.59559401]
[1758561679802,0.1,220.19,220.18,13.59559401]
[1758561680004,0.1,220.19,220.18,49.95559401]
[1758561681018,0.1,220.19,220.18,54.49733258]
[1758561682301,0.8,220.19,220.18,54.49733258]
[1758561682502,0.1,220.19,220.18,54.49733258]
[1758561684399,0.1,220.19,220.18,67.89890728]
[1758561685024,2.83904122,220.22,220.18,67.89890728]
[1758561685222,0.7,220.22,220.18,67.89890728]
[1758561685399,2.83904122,220.23,220.18,67.89890728]
[1758561685595,3.53904122,220.23,220.18,68.55890728]
[1758561685928,0.7,220.23,220.18,79.91325372]
[1758561686124,3.53904122,220.23,220.18,79.91325372]
[1758561686419,0.1,220.25,220.2,15.89464122]
[1758561686624,0.1,220.25,220.22,13.59559401]
[1758561686923,0.1,220.25,220.23,36.34]
[1758561687516,0.1,220.25,220.24,14.30559401]
[1758561687826,0.1,220.25,220.24,13.59559401]
[1758561688202,0.1,220.25,220.24,16.43463523]
[1758561688407,0.1,220.25,220.24,20.9751365]
[1758561688721,0.1,220.25,220.24,21.6851365]
[1758561689620,3.49904122,220.35,220.24,69.37638967]
[1758561689806,3.49904122,220.35,220.29,13.59559401]
[1758561690007,3.49904122,220.35,220.31,13.59559401]
[1758561690311,0.66,220.38,220.33,13.59559401]
[1758561690515,2.83904122,220.36,220.34,36.34]
[1758561691124,3.49904122,220.35,220.34,36.34]
[1758561691421,2.83904122,220.38,220.34,49.93559401]
[1758561691626,2.83904122,220.37,220.36,13.59559401]
[1758561691801,13.64039375,220.49,220.36,13.59559401]
[1758561691802,0.66,220.41,220.36,13.59559401]
[1758561692006,3.49904122,220.4,220.35,13.59559401]
[1758561692314,2.83904122,220.38,220.35,13.59559401]
[1758561692517,3.49904122,220.38,220.37,13.59559401]
[1758561693100,0.66,220.38,220.37,13.59559401]
[1758561693300,3.49904122,220.38,220.3,13.37882411]
[1758561693515,2.83904122,220.32,220.3,13.59559401]
[1758561693720,3.49904122,220.31,220.3,13.59559401]
[1758561693899,3.49904122,220.31,220.26,13.59559401]
[1758561694101,2.83904122,220.29,220.28,13.59559401]
[1758561694728,0.66,220.31,220.25,13.59559401]
[1758561694925,2.83904122,220.29,220.27,13.59559401]
[1758561695228,0.66,220.31,220.27,13.59559401]
[1758561695401,2.83904122,220.3,220.27,13.59559401]
[1758561695602,2.83904122,220.29,220.27,13.59559401]
[1758561695805,2.83904122,220.29,220.28,36.32]
[1758561695999,2.83904122,220.29,220.28,49.91559401]
[1758561696230,2.83904122,220.31,220.29,13.59559401]
[1758561696412,2.83904122,220.34,220.29,13.59559401]
[1758561696618,0.66,220.33,220.31,13.59559401]
[1758561696922,3.49904122,220.33,220.32,36.32]
[1758561697115,0.66,220.4,220.33,13.59559401]
[1758561697318,3.49904122,220.4,220.33,16.43463523]
[1758561697540,3.49904122,220.4,220.33,13.59559401]
[1758561697708,3.49904122,220.4,220.33,16.43463523]
[1758561697908,2.83904122,220.39,220.35,13.59559401]
[1758561698231,2.83904122,220.37,220.31,13.59559401]
[1758561698534,0.66,220.36,220.32,36.32]
[1758561698835,7.58640309,220.35,220.32,49.91559401]
[1758561699003,6.92640309,220.33,220.32,13.59559401]
[1758561699331,32.92640309,220.38,220.33,13.59559401]
[1758561699534,0.66,220.4,220.33,13.59559401]
[1758561699535,0.66,220.4,220.33,14.30559401]
[1758561699706,6.92640309,220.39,220.33,14.30559401]
[1758561699908,7.58640309,220.38,220.33,13.59559401]
[1758561700425,0.66,220.37,220.31,13.59559401]
[1758561700605,6.92640309,220.39,220.33,13.59559401]
[1758561700805,6.92640309,220.41,220.34,7.63640309]
[1758561701024,6.92640309,220.41,220.36,13.59559401]
[1758561701224,0.66,220.41,220.36,13.59559401]
[1758561701829,0.66,220.4,220.36,13.59559401]
[1758561702207,26.0,220.42,220.36,13.59559401]
[1758561702420,33.58640309,220.42,220.36,13.59559401]
[1758561702705,26.66,220.42,220.37,4.53782275]
[1758561703022,26.66,220.42,220.38,36.3]
[1758561703222,3.03409129,220.5,220.39,14.30559401]
[1758561703406,6.92640309,220.47,220.39,14.30559401]
[1758561703612,0.66,220.49,220.38,36.3]
[1758561703613,0.66,220.49,220.41,13.59559401]
[1758561703834,0.66,220.49,220.41,20.5219971]
[1758561704038,0.66,220.49,220.42,36.3]
[1758561704218,0.66,220.49,220.43,13.59559401]
[1758561704558,0.66,220.47,220.4,18.13279909]
[1758561704830,7.58640309,220.47,220.42,13.59559401]
[1758561705035,0.66,220.47,220.43,36.3]
[1758561705245,26.0,220.5,220.41,13.59559401]
[1758561705413,26.0,220.5,220.4,4.53720508]
[1758561705414,7.58640309,220.47,220.45,13.59559401]
[1758561705609,7.58640309,220.47,220.46,36.3]
[1758561705816,6.92640309,220.47,220.46,36.3]
[1758561706018,0.66,220.5,220.46,36.3]
[1758561706222,26.0,220.47,220.46,36.3]
[1758561706430,7.58640309,220.5,220.46,36.3]
[1758561706631,26.0,220.5,220.46,40.83593263]
[1758561706833,0.66,220.53,220.47,14.30559401]
[1758561707033,26.0,220.6,220.47,14.30559401]
[1758561707208,0.66,220.55,220.47,14.30559401]
[1758561707412,0.66,220.54,220.47,57.5319971]
[1758561707831,0.66,220.57,220.47,50.60559401]
[1758561708028,6.92640309,220.56,220.47,57.5319971]
[1758561708230,0.66,220.63,220.47,64.91197664]
[1758561708426,0.66,220.62,220.48,36.99]
[1758561708620,0.66,220.61,220.51,13.59559401]
[1758561708956,6.92640309,220.58,220.52,36.28]
[1758561709320,6.92640309,220.58,220.54,13.59559401]
[1758561709645,7.58640309,220.58,220.51,13.59559401]
[1758561709829,6.92640309,220.57,220.52,36.28]
[1758561710135,0.66,220.56,220.53,36.28]
[1758561710315,6.92640309,220.54,220.49,13.59559401]
[1758561710520,0.66,220.53,220.49,13.59559401]
[1758561710736,6.92640309,220.52,220.5,36.28]
[1758561710940,0.66,220.53,220.5,36.28]
[1758561711124,7.58640309,220.53,220.5,36.28]
[1758561711435,6.92640309,220.51,220.5,13.59559401]
[1758561711619,6.92640309,220.51,220.5,36.28]
[1758561712327,7.58640309,220.51,220.5,36.28]
[1758561712533,7.58640309,220.51,220.49,36.28]
[1758561712718,7.58640309,220.5,220.49,36.28]
[1758561713016,0.66,220.5,220.49,36.28]
[1758561713337,7.58640309,220.5,220.41,18.13259323]
[1758561713536,6.92640309,220.45,220.4,0.71]
[1758561713745,6.92640309,220.45,220.41,49.87559401]
[1758561714641,6.92640309,220.45,220.41,13.59559401]
[1758561714939,6.92640309,220.45,220.4,13.50882482]
[1758561714940,7.58640309,220.45,220.43,13.59559401]
[1758561715626,6.92640309,220.44,220.43,13.59559401]
[1758561715829,7.58640309,220.44,220.38,36.78]
[1758561716024,6.92640309,220.42,220.39,49.85559401]
[1758561716324,6.92640309,220.44,220.41,13.59559401]
[1758561716540,6.92640309,220.44,220.42,36.26]
[1758561716837,6.92640309,220.5,220.44,13.59559401]
[1758561717032,26.0,220.47,220.46,13.59559401]
[1758561717937,26.0,220.5,220.46,13.59559401]
[1758561718145,26.0,220.5,220.46,14.30559401]
[1758561718444,0.68,220.54,220.48,13.59559401]
[1758561718744,26.0,220.5,220.49,49.85559401]
[1758561719248,26.68,220.5,220.49,49.85559401]
[1758561719546,26.0,220.5,220.49,49.85559401]
[1758561721049,26.0,220.51,220.49,49.85559401]
[1758561721339,26.0,220.5,220.49,49.85559401]
[1758561722749,26.0,220.5,220.49,13.59559401]
[1758561722918,6.92640309,220.5,220.49,49.85559401]
[1758561723243,7.60640309,220.5,220.49,36.26]
[1758561724920,7.60640309,220.5,220.42,13.59559401]
[1758561725124,6.92640309,220.45,220.41,13.59559401]
[1758561725325,6.92640309,220.45,220.42,36.26]
[1758561725751,6.92640309,220.46,220.42,36.26]
[1758561726244,6.92640309,220.47,220.42,36.97]
[1758561726444,26.68,220.49,220.42,36.97]
[1758561726445,6.92640309,220.48,220.43,13.59559401]
[1758561726642,26.0,220.49,220.44,0.71]
[1758561726843,32.92640309,220.49,220.45,49.85559401]